[Event "Frauenbundesliga 2021-22"]
[Site "Germany"]
[Date "2022.05.29"]
[Round "11.2"]
[White "Kosteniuk, Alexandra"]
[Black "Schneider, Jana"]
[Result "1-0"]
[ECO "C77"]
[WhiteElo "2513"]
[BlackElo "2303"]
[Annotator "TA"]
[PlyCount "145"]
[EventDate "2021.11.26"]
[EventType "team-tourn"]
[EventCountry "GER"]
[SourceTitle "playchess.com"]
[Source "ChessBase"]
[SourceQuality "1"]
[WhiteTeam "Baden-Baden"]
[BlackTeam "Bad Koenigshofen"]
[TimeControl "40/5400+30:1800+30"]

{[%evp 12,144,15,24,21,11,23,20,29,4,31,12,36,22,20,-2,38,49,57,66,60,102,138,146,146,151,142,152,153,153,158,153,150,140,278,279,336,-218,304,314,473,347,368,354,375,375,430,434,471,365,487,485,567,429,860,827,865,863,859,845,823,623,644,608,577,265,251,143,131,135,149,151,150,131,139,164,162,151,155,134,115,137,211,136,186,179,281,277,537,535,521,505,395,52,44,50,71,8,62,56,69,69,308,304,305,291,274,270,343,343,1047,1002,972,968,644,488,29948,11123,29951,29955,9482,12536,7539,6347,2958,842,29977,29961,29960,29962,29978,29979,29998,29999,29999]} 1. e4 {[%emt 0:00:02]} e5 {[%emt 0:00:09]} 2. Nf3 {[%emt 0:00:06]} Nc6 {[%emt 0:00:06]} 3. Bb5 {[%emt 0:00:04]} a6 {[%emt 0:00:08]} 4. Ba4 {[%emt 0:00:04]} Nf6 {[%emt 0:00:08]} 5. d3 {[%emt 0:00:11]} b5 {[%emt 0:01:53]} 6. Bb3 {[%emt 0:00:05]} Bc5 {[%emt 0:00:10]} 7. Bg5 {[%emt 0:00:51][%cal Bc1g5,Bg5h4,Bh4g3][%mdl 32]} h6 {[%emt 0:04:23] C77: Ruy Lopez: 3...a6 4 Ba4 Nf6, unusual lines.} 8. Bh4 {[%emt 0:00:23]} d6 {[%emt 0:04:26] 8...Be7 injects fresh life into this line.} 9. c3 {[%emt 0:00:36]} Bd7 {[%emt 0:09:40] The position is equal.} 10. Nbd2 {[%emt 0:00:44][%cal Bb1d2,Bd2f1,Bf1g3][%mdl 32]} Bb6 {[%emt 0:01:47]} (10... g5 {with more complications.} 11. Bg3 Nh5 12. Nxe5 Nxg3 13. Bxf7+ Ke7) 11. Nf1 {[%emt 0:09:28]} g5 {[%emt 0:06:30]} 12. Bg3 {[%emt 0:00:18]} Ne7 {[%emt 0:01:26] [#]} 13. d4 $146 {[%emt 0:11:41]} ({Predecessor:} 13. Ne3 Ng6 14. O-O Nh7 15. Nd2 Nf6 16. Nf3 Nh7 17. Nd2 Nf6 18. Nf3 {½-½ (18) Karthikeyan,M (2560)-Kovalev,V (2703) Moscow 2019}) 13... Nxe4 {[%emt 0:07:55]} 14. dxe5 {[%emt 0:00:26]} g4 {[%emt 0:19:39]} 15. N3d2 {[%emt 0:13:38][%cal Bf3d2,Bd2e4,Be4f6][%mdl 32]} Nxg3 {[%emt 0:02:16]} 16. Nxg3 {[%emt 0:00:21]} dxe5 {[%emt 0:01:37]} 17. Nde4 {[%emt 0:01:08]} Be6 {[%emt 0:08:19]} 18. Nf6+ {[%emt 0:01:34]} Kf8 {[%emt 0:00:05]} 19. Bxe6 {[%emt 0:05:28]} Qxd1+ {[%emt 0:00:25]} 20. Rxd1 {[%emt 0:00:04][%cal Ba1d1,Bd1d7,Bd7f7][%mdl 32]} fxe6 {[%emt 0:00:11]} 21. Nxg4 {[%emt 0:04:17] White is more active.} Nc6 {[%emt 0:13:59]} 22. Rd7 {[%emt 0:01:39]} Rg8 {[%emt 0:01:07]} (22... Re8 $16) 23. Nxh6 $18 {[%emt 0:02:28]} Rg6 {[%emt 0:01:11]} 24. Rf7+ {[%emt 0:02:57]} Ke8 {[%emt 0:00:05]} 25. Rh7 {[%emt 0:00:04]} Rd8 {[%emt 0:00:32]} (25... Bc5 $142 26. f3 Bf8) 26. h3 {[%emt 0:00:43]} b4 {[%emt 0:07:21]} 27. Ng4 {[%emt 0:01:06] Inhibits Rf6.} bxc3 {[%emt 0:01:26]} 28. bxc3 {[%emt 0:00:05]} Rd5 {[%emt 0:01:51]} 29. Ne4 {[%emt 0:01:43]} Kd8 {[%emt 0:01:13]} 30. O-O {[%emt 0:05:18] And now Ngf6 would win.} Kc8 {[%emt 0:00:39]} 31. Ngf6 {[%emt 0:00:17] Pair of Knights!} Rd3 {[%emt 0:02:03]} 32. Kh2 {[%emt 0:00:29]} Na5 {[%emt 0:00:50]} (32... Rd8 $142 33. g4 Rf8) 33. h4 {[%emt 0:07:22][%cal Bh3h4,Bh4h5][%mdl 32]} Nc4 {[%emt 0:00:05]} 34. h5 {[%emt 0:00:24]} Rxf6 {[%emt 0:00:12]} 35. Nxf6 {[%emt 0:00:47]} Nd2 {[%emt 0:00:05]} 36. Kg1 {[%emt 0:02:05]} Nxf1 {[%emt 0:03:34]} 37. Kxf1 {[%emt 0:00:04]} Rxc3 {[%emt 0:00:35][%mdl 4096] Endgame KRB-KRN} 38. Ne4 {[%emt 0:01:17]} (38. h6 $142) 38... Rc4 {[%emt 0:00:43]} 39. f3 {[%emt 0:02:51]} (39. Nd2 $18 Rf4 40. f3) 39... Rc1+ $16 {[%emt 0:00:07]} 40. Ke2 {[%emt 0:00:02]} Rc2+ {[%emt 0:00:07] [#]} 41. Kd3 $1 {[%emt 0:30:05]} Rxg2 {[%emt 0:30:17]} 42. h6 {[%emt 0:00:17]} Rh2 {[%emt 0:00:00]} 43. Rh8+ {[%emt 0:00:00][%mdl 1024] White has strong compensation.} Kb7 {[%emt 0:00:00]} (43... Kd7 $2 44. h7 Ke7 45. Ng5) 44. h7 {[%emt 0:00:00] Black must now prevent Nf6.} Bd4 {[%emt 0:00:00]} 45. Ng5 {[%emt 0:00:00]} c5 {[%emt 0:00:00] Hoping for ...e4+.} 46. Rd8 {[%emt 0:00:00]} Kc6 {[%emt 0:00:00]} (46... Ba1 $16 {keeps fighting.} 47. Re8 Kc6) 47. a4 {[%emt 0:00:00]} (47. Rc8+ Kb5 48. Rb8+ Kc6) 47... Ba1 {[%emt 0:00:00]} (47... Rh4 $16 48. Re8 (48. Rc8+ Kb6 $16) 48... a5 49. Rc8+ (49. Rxe6+ Kd5 $11) 49... Kd7) 48. Kc4 $18 {[%emt 0:00:00]} e4 {[%emt 0:00:00]} (48... Rh4+ $142 49. Kb3 e4) 49. fxe4 {[%emt 0:00:00]} ({Don't do} 49. Nxe4 Rxh7 50. Rd6+ Kc7 $16) 49... Bf6 $2 {[%emt 0:00:00] [#]} (49... Rc2+ {was worth a try.} 50. Kd3 Rc3+ 51. Kd2 Ra3) 50. Rf8 $1 {[%emt 0:00:00]} Bd4 {[%emt 0:00:00]} 51. Re8 {[%emt 0:04:09]} Kd7 {[%emt 0:00:49]} 52. Rxe6 {[%emt 0:02:08]} (52. Ra8 $18) 52... Rxh7 $1 $14 {[%emt 0:00:35]} 53. Rxa6 {[%emt 0:00:04] Intending Ra7+ and mate.} Rh4 $1 {[%emt 0:01:29]} 54. Kd3 {[%emt 0:08:19] Against Be3} (54. a5 $16) 54... Rg4 {[%emt 0:02:15]} ({Black should try} 54... Rh1 $11) 55. Nf7 {[%emt 0:13:47]} Rf4 {[%emt 0:01:51]} 56. Ra7+ {[%emt 0:01:42]} Ke6 $2 {[%emt 0:00:55] Black cannot hold the game after this.} (56... Kc6 $14) 57. Nd8+ $18 {[%emt 0:00:15]} Kd6 {[%emt 0:00:08] [#]} 58. Ra6+ $1 {[%emt 0:00:11]} Kd7 {[%emt 0:00:24]} 59. Ne6 {[%emt 0:00:09]} Rf3+ {[%emt 0:01:00]} 60. Kc4 {[%emt 0:00:07]} Rc3+ $2 {[%emt 0:00:47]} (60... Bg1 61. Nxc5+ Kc7) 61. Kd5 {[%emt 0:00:10]} Bf2 {[%emt 0:00:48]} 62. Ra7+ {[%emt 0:00:15]} Ke8 {[%emt 0:00:18]} 63. Nc7+ {[%emt 0:01:30]} Kd8 {[%emt 0:00:44]} (63... Kf8 $18 64. Nb5 Rd3+ 65. Ke6 Kg8 66. Ra8+ Kg7) 64. Nb5 {[%emt 0:01:49]} Rd3+ {[%emt 0:00:36]} 65. Ke6 {[%emt 0:00:07][%cal Ra7a8]} Kc8 {[%emt 0:00:25]} 66. a5 {[%emt 0:00:55][%cal Ba4a5,Ba5a6][%mdl 32] White threatens a6 and mate.} Rb3 {[%emt 0:00:31]} 67. Nd6+ {[%emt 0:00:22]} Kb8 {[%emt 0:00:06]} 68. Rf7 {[%emt 0:00:37]} Rb2 {[%emt 0:00:56]} 69. a6 {[%emt 0:02:27] White mates.} c4 {[%emt 0:00:16]} 70. Nxc4 {[%emt 0:00:07]} Ra2 {[%emt 0:00:03]} 71. Rb7+ {[%emt 0:00:14]} Kc8 {[%emt 0:00:29]} 72. Nd6+ {[%emt 0:00:04]} Kd8 {[%emt 0:00:09]} 73. Rd7# {[%emt 0:00:05] Weighted Error Value: White=0.46/Black=0.38} 1-0

[Event "Frauenbundesliga 2021-22"]
[Site "Germany"]
[Date "2022.05.29"]
[Round "11.2"]
[White "Antolak, Julia"]
[Black "Kulon, Klaudia"]
[Result "1/2-1/2"]
[ECO "B22"]
[WhiteElo "2371"]
[BlackElo "2305"]
[Annotator "TA"]
[PlyCount "34"]
[EventDate "2021.11.26"]
[EventType "team-tourn"]
[EventCountry "GER"]
[SourceTitle "playchess.com"]
[Source "ChessBase"]
[SourceQuality "1"]
[WhiteTeam "Harksheide"]
[BlackTeam "Leipzig"]
[TimeControl "40/5400+30:1800+30"]

{[%evp 9,34,37,41,39,38,0,0,-25,18,15,17,18,20,19,16,19,18,16,16,16,23,7,17,0,6,0,-5]} 1. e4 {[%emt 0:00:03]} c5 {[%emt 0:00:04]} 2. Nf3 {[%emt 0:00:06]} g6 {[%emt 0:00:04]} 3. c3 {[%emt 0:00:13]} d5 {[%emt 0:00:17]} 4. exd5 {[%emt 0:00:30]} Qxd5 {[%emt 0:00:05]} 5. d4 {[%emt 0:00:27]} Nc6 {[%emt 0:06:00]} 6. Be3 {[%emt 0:01:41] B22: Sicilian: 2 c3.} cxd4 {[%emt 0:02:55]} 7. Nxd4 {[%emt 0:06:25]} (7. cxd4 $5 {[%cal Rb1c3]} Qa5+ 8. Nc3 $14) 7... Bg7 {[%emt 0:03:46] [#]} 8. Na3 $146 {[%emt 0:04:31][%cal Bb1a3,Ba3b5,Bb5d4][%mdl 32]} ({Predecessor:} 8. Nxc6 Qxd1+ 9. Kxd1 bxc6 10. Kc2 Nf6 11. Bd3 Ng4 12. Nd2 Nxe3+ 13. fxe3 O-O 14. Nb3 {0-1 (29) Glavina,P (2410)-Visakh,N (2516) Chess.com INT 2021}) 8... Nxd4 {[%emt 0:01:56]} (8... Bxd4 $5 9. Nb5 {[#]} (9. Bxd4 Nxd4 10. Qxd4 Qxd4 $15) 9... Bxc3+ $1 10. Nxc3 Qxd1+ 11. Rxd1 Be6 $11) 9. Nb5 {[%emt 0:03:43][%mdl 64] [#] aiming for Nc7+. Pin} Qd8 {[%emt 0:07:14] Prevents Nc7+. ...Nxb5 is the strong threat.} 10. Bxd4 {[%emt 0:05:44]} (10. Nxd4 {is interesting.} a6 11. Bc4 Nf6 12. Bb3) 10... Bxd4 {[%emt 0:00:40]} 11. Qxd4 {[%emt 0:02:16]} Qxd4 {[%emt 0:00:07]} 12. Nxd4 {[%emt 0:00:04]} a6 {[%emt 0:01:05]} 13. O-O-O {[%emt 0:01:40]} Nf6 {[%emt 0:02:14]} 14. Be2 {[%emt 0:04:03]} Bg4 {[%emt 0:04:12]} 15. Rhe1 {[%emt 0:04:27]} Bxe2 {[%emt 0:03:14] The position is equal.} 16. Rxe2 {[%emt 0:00:05]} e6 {[%emt 0:00:25]} 17. Nb3 {[%emt 0:04:07]} Ke7 {[%emt 0:00:55] Weighted Error Value: White=0.09 (flawless) /Black=0.05 (flawless)} 1/2-1/2

[Event "Frauenbundesliga 2021-22"]
[Site "Germany"]
[Date "2022.05.29"]
[Round "11.2"]
[White "Padmini, Rout"]
[Black "Berzina, Ilze"]
[Result "1-0"]
[ECO "C60"]
[WhiteElo "2348"]
[BlackElo "2180"]
[Annotator "TA"]
[PlyCount "87"]
[EventDate "2021.11.26"]
[EventType "team-tourn"]
[EventCountry "GER"]
[SourceTitle "playchess.com"]
[Source "ChessBase"]
[SourceQuality "1"]
[WhiteTeam "Hamburger SK"]
[BlackTeam "Loeberitz"]
[TimeControl "40/5400+30:1800+30"]

{[%evp 16,87,9,14,28,11,11,9,8,4,23,27,17,22,30,18,29,16,31,2,41,0,12,16,22,22,48,44,43,0,47,56,47,17,44,39,75,72,38,25,99,80,90,73,66,58,79,76,134,134,141,129,302,59,366,337,454,453,356,328,689,673,1062,1031,969,948,29979,29980,29982,29983,29985,29986,29986,29987]} 1. e4 {[%emt 0:00:05]} e5 {[%emt 0:00:10]} 2. Nf3 {[%emt 0:00:08]} Nc6 {[%emt 0:00:07]} 3. Bb5 {[%emt 0:00:07]} g6 {[%emt 0:00:15]} 4. d4 {[%emt 0:00:22]} exd4 {[%emt 0:00:27]} 5. Bg5 {[%emt 0:00:10]} Be7 {[%emt 0:01:04]} 6. Bxe7 {[%emt 0:00:25]} Qxe7 {[%emt 0:00:35]} 7. Bxc6 {[%emt 0:01:23]} dxc6 {[%emt 0:00:54]} 8. Qxd4 {[%emt 0:00:12]} Nf6 {[%emt 0:00:47][%cal Bg8f6,Bf6d7,Bd7b6,Bb6c4][%mdl 32]} 9. Nc3 {[%emt 0:00:16]} Bg4 {[%emt 0:05:04] C60: Ruy Lopez: Unusual Black 3rd moves and 3...g6.} 10. Nd2 {[%emt 0:00:37]} (10. O-O-O $5 {[%cal Re4e5]} Bxf3 11. gxf3 $11) 10... c5 {[%emt 0:09:50]} 11. Qe3 {[%emt 0:00:54]} O-O-O {[%emt 0:00:35] The position is equal.} 12. h3 {[%emt 0:01:23]} Be6 {[%emt 0:03:20]} 13. O-O-O {[%emt 0:02:36]} Nd7 {[%emt 0:09:04]} 14. f4 {[%emt 0:07:53]} Nb6 {[%emt 0:03:47]} 15. g4 {[%emt 0:05:24]} f6 {[%emt 0:04:10]} 16. Rhe1 {[%emt 0:12:51]} Rhe8 {[%emt 0:01:01]} 17. Nf3 {[%emt 0:01:26] [#]} Bf7 $146 {[%emt 0:10:39][%cal Ob6d5]} ({Predecessor:} 17... Rxd1+ 18. Rxd1 Nc4 19. Qf2 g5 20. b3 Nb6 21. f5 {½-½ (21) Can,I (2374)-Zanan,E (2503) Montebelluna 2020}) 18. a3 {[%emt 0:09:43]} Nc4 {[%emt 0:02:35]} 19. Qf2 {[%emt 0:01:30]} Rxd1+ {[%emt 0:10:47]} 20. Rxd1 {[%emt 0:00:27]} Rd8 {[%emt 0:01:58]} 21. Rxd8+ {[%emt 0:05:32]} Kxd8 {[%emt 0:00:31]} 22. Nd2 {[%emt 0:00:21]} c6 {[%emt 0:15:18]} (22... Nxd2 $11 {might be stronger.} 23. Qxd2+ Kc8) 23. Nxc4 $14 {[%emt 0:03:53]} Bxc4 {[%emt 0:00:12][%mdl 4096] Endgame KQB-KQN} 24. Qe3 {[%emt 0:01:31]} b5 {[%emt 0:01:11]} 25. h4 {[%emt 0:02:02]} f5 {[%emt 0:08:10]} 26. g5 {[%emt 0:03:19]} fxe4 {[%emt 0:03:36]} 27. Qxe4 {[%emt 0:00:46]} Bd5 {[%emt 0:00:59] [#]} (27... Qd6 $1 $11 {remains equal.}) 28. Qxe7+ $1 $16 {[%emt 0:02:05]} Kxe7 {[%emt 0:00:02] [#] KB-KN} 29. Ne2 $1 {[%emt 0:00:32]} Ke6 {[%emt 0:02:25] Strongly threatening ...Kf5.} 30. Ng3 {[%emt 0:00:12]} Bf3 {[%emt 0:00:29]} 31. Kd2 {[%emt 0:00:20]} c4 {[%emt 0:02:43]} (31... Kd5 $142) 32. c3 {[%emt 0:01:24]} a5 {[%emt 0:01:55]} 33. Ke3 {[%emt 0:00:07]} Bg2 {[%emt 0:00:56]} (33... Bd1 $16) 34. Kd4 $2 {[%emt 0:01:23]} (34. f5+ $18 gxf5 35. Kf4) 34... Kd6 $2 {[%emt 0:00:07][%mdl 8192]} (34... Bf3 $1 $14) 35. f5 $18 {[%emt 0:09:55]} c5+ {[%emt 0:00:11]} 36. Ke3 {[%emt 0:00:34]} gxf5 {[%emt 0:00:06]} 37. Kf4 {[%emt 0:00:24]} b4 $2 {[%emt 0:01:16]} (37... Ke6 38. h5 Bh3) 38. Nxf5+ {[%emt 0:00:35]} Ke6 {[%emt 0:00:56]} 39. h5 {[%emt 0:01:46]} Bh3 {[%emt 0:00:55]} 40. Ne3 {[%emt 0:00:39]} Kd6 {[%emt 0:00:30]} 41. g6 {[%emt 0:30:56] White mates.} h6 {[%emt 0:30:22]} 42. Nf5+ {[%emt 0:00:18]} Ke6 {[%emt 0:00:21]} 43. Nxh6 {[%emt 0:00:07]} Kf6 {[%emt 0:00:26]} 44. Ng4+ {[%emt 0:00:10] Weighted Error Value: White=0.12 (very precise) /Black=0.67} 1-0

[Event "Frauenbundesliga 2021-22"]
[Site "Germany"]
[Date "2022.05.29"]
[Round "11.2"]
[White "Gaponenko, Inna"]
[Black "Batsiashvili, Nino"]
[Result "1/2-1/2"]
[ECO "C78"]
[WhiteElo "2332"]
[BlackElo "2463"]
[Annotator "TA"]
[PlyCount "114"]
[EventDate "2021.11.26"]
[EventType "team-tourn"]
[EventCountry "GER"]
[SourceTitle "playchess.com"]
[Source "ChessBase"]
[SourceQuality "1"]
[WhiteTeam "Deizisau"]
[BlackTeam "Schwaebisch Hall"]
[TimeControl "40/5400+30:1800+30"]

{[%evp 15,114,24,17,17,7,22,17,22,20,8,64,52,58,45,53,45,50,63,53,63,54,39,119,120,137,128,135,139,126,115,129,134,132,129,127,118,183,164,182,113,114,115,120,102,114,76,97,80,80,77,61,76,82,36,36,36,36,36,36,36,36,36,36,0,0,0,0,0,0,0,0,0,0,0,0,0,0,0,0,0,0,0,0,0,191,222,270,0,0,0,0,0,0,0,0,0,0,0,0,0,0]} 1. e4 {[%emt 0:00:04]} e5 {[%emt 0:00:04]} 2. Nf3 {[%emt 0:00:06]} Nc6 {[%emt 0:00:05]} 3. Bb5 {[%emt 0:00:09]} a6 {[%emt 0:00:05]} 4. Ba4 {[%emt 0:01:01]} Nf6 {[%emt 0:00:07]} 5. O-O {[%emt 0:00:14]} b5 {[%emt 0:00:13]} 6. Bb3 {[%emt 0:00:07]} Bc5 {[%emt 0:00:10]} 7. a4 $1 {[%emt 0:09:37][%mdl 4] now scores much better than the old 7.c3.} Rb8 {[%emt 0:00:13]} 8. axb5 {[%emt 0:03:34]} axb5 {[%emt 0:00:05] [#]} 9. Nxe5 $1 {[%emt 0:00:05] C78: Ruy Lopez: Archangelsk and Möller Defences.} Nxe5 {[%emt 0:00:05]} 10. d4 {[%emt 0:00:05]} Bxd4 {[%emt 0:00:34]} 11. Qxd4 {[%emt 0:00:10]} d6 {[%emt 0:00:17]} 12. f4 {[%emt 0:00:17]} c5 {[%emt 0:04:26]} (12... Nc6 $11 13. Qc3 Ne7) 13. Qd1 $14 {[%emt 0:03:24]} Nc6 {[%emt 0:07:33]} 14. e5 $1 $36 {[%emt 0:10:32][%mdl 2048] White has some pressure.} dxe5 {[%emt 0:02:26]} 15. Qxd8+ {[%emt 0:00:08]} Nxd8 {[%emt 0:00:43]} 16. fxe5 {[%emt 0:00:06]} Ng4 {[%emt 0:05:39]} 17. Bd5 {[%emt 1:09:21]} Be6 {[%emt 0:01:56]} 18. Be4 {[%emt 0:00:00] [#] A strong pair of Bishops.} Bc4 $146 {[%emt 0:16:26] [#]} (18... O-O $14) ({Predecessor:} 18... Nxe5 19. Bf4 f6 20. Bxe5 fxe5 21. Ra7 Bf7 22. Bc6+ Nxc6 23. Raxf7 Rd8 24. Rc7 Rf8 {0-1 (55) Bellaiche,E (2154)-Srija,S (1911) Porto Carras 2015}) 19. Re1 $1 $16 {[%emt 0:00:00]} Nxe5 {[%emt 0:07:34]} 20. Be3 {[%emt 0:00:00]} Rc8 {[%emt 0:20:28]} 21. Bf4 {[%emt 0:00:00]} f6 {[%emt 0:00:57]} 22. Bxe5 {[%emt 0:00:00]} fxe5 {[%emt 0:00:16]} 23. Na3 {[%emt 0:00:00]} Be6 {[%emt 0:03:26]} 24. Nxb5 {[%emt 0:00:00] aiming for Nd6+.} O-O {[%emt 0:00:11]} 25. b3 {[%emt 0:00:00]} Nf7 {[%emt 0:04:58]} (25... Kh8 $16 {keeps fighting.} 26. Ra5 Nf7) 26. Ra6 $18 {[%emt 0:00:00]} Bd7 {[%emt 0:05:57]} 27. Nd6 {[%emt 0:00:00]} (27. c4 $18) 27... Nxd6 $16 {[%emt 0:01:55]} 28. Rxd6 {[%emt 0:00:00]} Bf5 {[%emt 0:01:55]} 29. Bxf5 {[%emt 0:00:00] White is more active.} Rxf5 {[%emt 0:00:01][%mdl 4096] Endgame KRR-KRR} 30. Re6 {[%emt 0:00:00]} c4 {[%emt 0:05:26]} 31. R6xe5 {[%emt 0:00:00]} Rxe5 {[%emt 0:00:15]} 32. Rxe5 {[%emt 0:00:00]} cxb3 {[%emt 0:00:24]} 33. cxb3 {[%emt 0:00:00] KR-KR} Rc2 {[%emt 0:00:44]} 34. h4 {[%emt 0:02:53]} ({Better is} 34. Re7 $16) 34... Rb2 $14 {[%emt 0:00:24]} 35. Rb5 {[%emt 0:00:04]} h5 {[%emt 0:01:37]} 36. Kh2 {[%emt 0:03:47]} Kf7 {[%emt 0:00:25]} 37. Rb6 {[%emt 0:00:39]} Rd2 {[%emt 0:01:47]} 38. Kg3 {[%emt 0:00:53]} Rd4 {[%emt 0:00:52]} 39. b4 {[%emt 0:00:33]} Rg4+ {[%emt 0:00:56]} 40. Kh3 {[%emt 0:00:04]} Rd4 {[%emt 0:00:14]} 41. b5 {[%emt 0:30:45]} Rd3+ {[%emt 0:30:06]} 42. Kh2 {[%emt 0:01:53]} Rd4 {[%emt 0:01:19]} 43. Kg3 {[%emt 0:00:07]} Rg4+ {[%emt 0:00:05]} 44. Kh3 {[%emt 0:00:04]} Rb4 {[%emt 0:00:04]} 45. Rb7+ {[%emt 0:01:34]} Kf6 {[%emt 0:00:21]} 46. b6 {[%emt 0:00:20]} Rb3+ {[%emt 0:00:20]} 47. Kh2 $1 {[%emt 0:00:05]} g6 {[%emt 0:05:02]} 48. Rb8 {[%emt 0:00:00]} Kg7 {[%emt 0:00:00]} 49. Kg1 {[%emt 0:00:00]} Rb2 $2 {[%emt 0:00:00]} (49... Rb1+ $11 {and Black has nothing to worry.} 50. Kf2 Rh1) 50. Kf1 $18 {[%emt 0:00:00]} Kf6 {[%emt 0:00:00]} 51. Ke1 $2 {[%emt 0:00:00]} (51. b7 $18 {White threatens Rf8+ and mate.} Kg7 52. Ke1) 51... Kf5 $11 {[%emt 0:00:00] The position is equal.} 52. b7 {[%emt 0:00:00]} Kg4 {[%emt 0:00:00]} 53. Rg8 {[%emt 0:00:00]} Rxb7 {[%emt 0:00:00]} 54. Rxg6+ {[%emt 0:00:00]} Kxh4 {[%emt 0:00:00]} 55. Kf2 {[%emt 0:00:00]} Rb2+ {[%emt 0:00:00]} 56. Kg1 {[%emt 0:00:00]} Rb1+ {[%emt 0:00:00]} 57. Kh2 {[%emt 0:00:00][%csl Gg6,Gh2][%cal Rg2g3]} Rb2 {[%emt 0:09:54] Weighted Error Value: White=0.10 (very precise) /Black=0.13 (very precise)} 1/2-1/2

[Event "Frauenbundesliga 2021-22"]
[Site "Germany"]
[Date "2022.05.29"]
[Round "11.2"]
[White "Newrkla, Katharina"]
[Black "Lubbe, Melanie"]
[Result "1/2-1/2"]
[ECO "B63"]
[WhiteElo "2232"]
[BlackElo "2308"]
[Annotator "TA"]
[PlyCount "54"]
[EventDate "2021.11.26"]
[EventType "team-tourn"]
[EventCountry "GER"]
[SourceTitle "playchess.com"]
[Source "ChessBase"]
[SourceQuality "1"]
[WhiteTeam "Lehrte"]
[BlackTeam "Rodewisch"]
[TimeControl "40/5400+30:1800+30"]

{[%evp 25,54,25,45,10,19,-10,49,-46,33,0,0,0,0,0,0,0,0,-7,0,-19,0,0,0,0,0,0,0,0,0,0,0]} 1. e4 {[%emt 0:00:03]} c5 {[%emt 0:00:04]} 2. Nf3 {[%emt 0:00:03]} d6 {[%emt 0:00:11]} 3. d4 {[%emt 0:00:05]} cxd4 {[%emt 0:00:03]} 4. Nxd4 {[%emt 0:00:06]} Nf6 {[%emt 0:00:04]} 5. Nc3 {[%emt 0:00:05]} Nc6 {[%emt 0:00:05]} 6. Bg5 {[%emt 0:00:07]} e6 {[%emt 0:00:05]} 7. Qd2 {[%emt 0:00:05]} Be7 {[%emt 0:00:06]} 8. O-O-O {[%emt 0:00:11]} O-O {[%emt 0:00:08]} 9. h4 {[%emt 0:00:32]} Nxd4 {[%emt 0:01:01]} 10. Qxd4 {[%emt 0:00:07]} a6 {[%emt 0:02:30]} 11. Kb1 {[%emt 0:07:10]} Qa5 {[%emt 0:17:53]} 12. Qd2 {[%emt 0:03:47]} Qc7 {[%emt 0:01:56]} 13. f3 {[%emt 0:08:34]} Rd8 {[%emt 0:01:42]} 14. g4 {[%emt 0:05:42] B63: Sicilian: Richter-Rauzer: 7...Be7 and unusual Black 7th moves.} b5 {[%emt 0:02:51]} 15. Bd3 {[%emt 0:05:17]} Bb7 {[%emt 0:03:53]} ({Black should play} 15... b4 $1 $11 16. Ne2 Bb7) 16. h5 {[%emt 0:16:49] [#]} (16. Ne2 $14) 16... d5 $146 {[%emt 0:16:24]} ({Black should try} 16... b4 $1 $15 17. Ne2 d5 18. Bxf6 Bxf6) ({Predecessor:} 16... Rac8 17. Rdg1 b4 18. Ne2 a5 19. Bxf6 Bxf6 20. g5 Be7 21. Nf4 d5 22. g6 dxe4 23. gxf7+ Kxf7 24. Rxg7+ Kxg7 25. Nxe6+ {½-½ (33) Kreisl,R (2337)-Krieger,H (2217) Graz 2008}) 17. e5 {[%emt 0:01:21]} Ne4 {[%emt 0:01:38] The position is equal.} 18. fxe4 {[%emt 0:00:11]} dxe4 {[%emt 0:00:05]} 19. Bxe7 {[%emt 0:01:53]} Qxe7 {[%emt 0:03:25]} 20. Nxe4 {[%emt 0:04:32]} Bxe4 {[%emt 0:00:07][%mdl 64] [#] Pin} 21. Rh3 {[%emt 0:00:10]} h6 {[%emt 0:02:56]} 22. Qe2 {[%emt 0:02:59]} Bxd3 {[%emt 0:06:44]} (22... Bb7 {seems wilder.} 23. Qe3 Rac8 24. a3 Bd5) 23. Rhxd3 {[%emt 0:04:19]} Rxd3 {[%emt 0:00:50]} 24. Qxd3 {[%emt 0:01:25]} Qc5 {[%emt 0:04:10]} 25. Qe4 {[%emt 0:03:07]} Rc8 {[%emt 0:00:38]} 26. a3 {[%emt 0:03:28]} a5 {[%emt 0:12:23]} 27. Rd4 {[%emt 0:16:54]} Rb8 {[%emt 0:02:44] An interesting draw.  Weighted Error Value: White=0.21 (precise) /Black=0.16 (very precise)} 1/2-1/2